bitfinex/quotes_ETHUSD_20250815
["timestamp","ask_amount","ask_price","bid_price","bid_amount"]
[1755266818844,3.83,4564.1,4562.5,3.0]
[1755266819016,3.83,4564.1,4562.3,3.0]
[1755266819017,3.83,4564.1,4562.6,2.21363403]
[1755266819338,3.83,4564.1,4562.7,3.0]
[1755266819542,2.23112195,4563.9,4563.1,2.19147858]
[1755266819857,2.23112195,4563.9,4562.6,3.0]
[1755266819858,0.04,4563.9,4563.5,2.1912627]
[1755266820004,0.04,4563.9,4562.6,3.0]
[1755266820211,0.04,4563.9,4562.6,0.38745]
[1755266820405,0.04,4563.9,4562.6,3.0]
[1755266820808,0.04,4563.9,4563.8,2.19115649]
[1755266821216,0.04,4563.9,4563.5,2.19127699]
[1755266821439,0.04,4563.9,4563.2,3.0]
[1755266821812,0.04,4563.9,4563.6,2.19120529]
[1755266822119,0.04,4563.9,4562.7,3.4161]
[1755266822320,0.04,4563.9,4563.4,5.19134855]
[1755266822540,0.04,4563.9,4563.8,2.19115649]
[1755266822846,0.04,4563.9,4563.8,2.21306805]
[1755266823036,0.04,4563.9,4563.8,6.06565649]
[1755266823225,0.04,4564.9,4564.8,2.19067648]
[1755266823559,0.04,4564.9,4564.1,2.19097791]
[1755266823711,0.04,4564.9,4564.8,2.19067648]
[1755266823916,0.04,4564.9,4564.8,5.19067648]
[1755266824342,0.04,4564.9,4564.8,2.19067648]
[1755266824546,0.04,4564.9,4564.8,2.51270888]
[1755266824747,0.04,4564.9,4564.4,0.4584]
[1755266825024,0.04,4564.9,4564.5,2.1908146]
[1755266825225,0.04,4564.9,4564.4,0.1096]
[1755266826059,0.9219,4564.8,4564.4,0.1096]
[1755266826359,0.04,4564.9,4563.4,0.1096]
[1755266826360,2.19097067,4564.2,4563.4,0.1096]
[1755266826662,0.1096,4563.7,4563.4,2.1913356]
[1755266826952,0.1096,4563.7,4563.1,2.30108437]
[1755266826953,0.1096,4563.7,4563.6,2.19125251]
[1755266827143,0.1096,4564.0,4563.3,0.1096]
[1755266827516,0.1096,4564.0,4563.5,2.19130053]
[1755266827716,2.74069155,4564.8,4563.9,2.19110848]
[1755266828065,0.1096,4564.7,4564.0,2.30063394]
[1755266828357,2.19067648,4564.8,4563.6,3.4882]
[1755266828538,0.1096,4564.4,4563.8,0.1096]
[1755266828740,0.1096,4564.4,4563.6,3.0]
[1755266828970,0.1096,4564.4,4563.5,0.1096]
[1755266829132,0.1096,4564.0,4563.5,0.1096]
[1755266829449,0.4727,4564.5,4562.8,2.19163565]
[1755266829450,0.1096,4563.6,4562.8,2.19163565]
[1755266829650,0.956,4563.9,4562.7,2.30128072]
[1755266829849,0.1096,4563.3,4562.8,0.25204443]
[1755266830054,0.1096,4563.6,4563.4,2.19133024]
[1755266830230,0.002,4563.9,4563.4,0.1096]
[1755266830433,0.1096,4563.7,4563.1,0.1096]
[1755266830763,0.552,4563.9,4562.4,0.1106]
[1755266830917,0.1096,4563.0,4562.5,3.0]
[1755266831229,0.1096,4563.3,4563.2,2.1914446]
[1755266831428,0.002,4563.9,4563.2,0.9043]
[1755266831628,0.002,4563.9,4563.2,3.4882]
[1755266831853,0.002,4563.9,4563.4,2.19133128]
[1755266832031,0.002,4563.9,4563.1,3.0]
[1755266832356,0.002,4563.9,4563.8,0.1096]
[1755266832558,0.002,4563.9,4563.0,0.9043]
[1755266832720,0.1096,4563.8,4562.3,3.0]
[1755266832919,0.1096,4563.8,4563.1,2.19147103]
[1755266833120,0.002,4563.9,4563.0,2.19152995]
[1755266833360,0.1116,4563.9,4563.4,2.19133478]
[1755266833662,0.1116,4563.9,4563.3,3.0]
[1755266833663,0.1116,4563.9,4563.3,2.19139657]
[1755266833961,0.1116,4563.9,4563.2,0.1096]
[1755266834273,1.0313,4565.0,4563.2,0.1096]
[1755266834274,0.042,4566.9,4564.0,30.07370012]
[1755266834571,0.4727,4566.8,4564.8,2.30027648]
[1755266834722,0.1096,4566.2,4564.8,6.04937903]
[1755266835062,0.4727,4566.8,4564.8,6.84407903]
[1755266835360,0.1096,4566.2,4564.8,6.95367903]
[1755266835555,0.1096,4566.2,4564.8,5.30027648]
[1755266835760,2.1903452,4565.5,4564.8,3.1096]
[1755266835968,0.1096,4565.3,4563.7,0.4882]
[1755266836125,0.1096,4565.0,4564.5,2.19082046]
[1755266836526,2.19067648,4564.8,4564.4,0.1096]
[1755266836720,2.19067648,4564.8,4562.5,29.26547423]
[1755266836721,0.1096,4564.5,4563.7,0.1096]
[1755266837018,0.954,4564.7,4563.7,0.1096]
[1755266837019,0.1096,4564.3,4563.7,0.1096]
[1755266837222,0.1096,4564.3,4563.8,3.0]
[1755266837431,0.1096,4564.3,4564.2,2.19096446]
[1755266837656,0.1096,4564.3,4564.2,5.76107201]
[1755266837819,0.1096,4564.3,4564.2,5.19096446]
[1755266838023,0.4747,4565.6,4564.3,5.19088911]
[1755266838261,2.19056246,4565.1,4564.3,2.19087725]
[1755266838424,0.1496,4564.9,4564.3,2.19087725]
[1755266838758,0.1496,4564.9,4564.4,2.19086235]
[1755266838934,0.1496,4564.9,4564.4,2.19082295]
[1755266839123,0.1496,4564.9,4564.4,2.19086399]
[1755266839328,0.1496,4564.9,4564.2,0.1096]
[1755266839540,0.1496,4564.9,4564.2,2.30053589]
[1755266839839,0.1496,4564.9,4564.3,2.19086869]
[1755266840038,0.1496,4564.9,4564.2,0.1096]
[1755266840263,0.1496,4564.9,4564.4,2.19086846]
[1755266840569,0.1496,4564.9,4564.3,2.19089019]
[1755266840778,0.1496,4564.9,4564.6,2.19076283]
[1755266840975,0.1496,4564.9,4564.4,2.19086846]
[1755266841279,0.04,4564.9,4564.4,0.23004685]
[1755266841429,0.04,4564.9,4564.6,0.1096]
[1755266841630,0.04,4564.9,4564.7,0.02190724]
[1755266841857,0.0392,4564.9,4564.8,5.19067648]
[1755266842573,0.0392,4564.9,4564.8,2.19067648]
[1755266842868,0.0392,4564.9,4564.6,0.1096]
[1755266843240,0.0392,4564.9,4564.7,2.19071015]
[1755266843438,0.0392,4564.9,4564.6,0.1096]
[1755266844166,0.0392,4564.9,4564.4,0.1096]
[1755266844370,0.0392,4564.9,4564.4,2.3004263]
[1755266844552,0.0392,4564.9,4564.6,3.0]
[1755266844727,0.0392,4564.9,4564.8,2.30027648]
[1755266845252,0.0392,4564.9,4564.8,5.78847648]
[1755266845769,0.0392,4564.9,4564.8,6.09497648]
[1755266845974,0.0392,4564.9,4564.8,6.92355087]
[1755266846273,0.002,4565.6,4565.5,2.19034059]
[1755266846571,1e-08,4565.6,4565.5,2.19034059]
[1755266846776,0.002,4566.3,4566.2,2.19000481]
[1755266846975,1e-08,4566.5,4566.4,2.18990889]
[1755266847177,0.21704451,4567.5,4566.4,2.18990889]
[1755266847178,0.21704451,4567.5,4566.8,2.18971708]
[1755266848134,0.21704451,4567.5,4566.1,0.0880453]
[1755266848340,0.21704451,4567.5,4566.3,3.0]
[1755266848552,0.21704451,4567.5,4566.5,3.0]
[1755266848990,0.21704451,4567.5,4566.8,2.18971708]
[1755266849542,0.21704451,4567.5,4566.5,3.0]
[1755266849738,2.18944642,4567.4,4566.6,2.18980267]
[1755266849936,0.68974451,4567.5,4566.3,3.0]
[1755266850164,2.18946808,4567.4,4566.3,4.03012]
[1755266850341,0.68974451,4567.5,4566.3,4.03012]
[1755266850678,0.68974451,4567.5,4566.3,3.0]
[1755266850891,0.4727,4567.3,4565.8,2.19017399]
[1755266851086,2.18977121,4566.7,4565.7,3.0]
[1755266851242,0.4813,4567.2,4565.7,3.0]
[1755266851436,0.4813,4567.2,4565.7,6.00223821]
[1755266851437,0.4727,4566.8,4565.7,6.00223821]
[1755266851642,2.18985185,4566.6,4565.8,2.19019534]
[1755266851844,2.1898257,4566.6,4565.7,2.19020643]
[1755266852056,2.1898257,4566.6,4565.8,0.0008]
[1755266852552,2.18986476,4566.5,4565.8,0.0008]
[1755266852756,2.19003959,4566.2,4565.8,0.0008]
[1755266852950,0.95792858,4566.5,4565.8,0.0008]
[1755266853143,0.4727,4566.1,4565.8,0.0008]
[1755266853340,2.66277343,4566.1,4565.8,0.0008]
[1755266853657,0.4727,4566.0,4565.8,0.0008]
[1755266854066,0.4727,4566.6,4565.8,0.0008]
[1755266854471,0.04,4566.9,4565.8,0.0008]
[1755266854646,0.04,4566.9,4566.2,2.18999138]
[1755266854845,0.04,4566.9,4565.8,0.0008]
[1755266854846,0.73566614,4566.9,4565.8,0.0008]
[1755266855046,0.5127,4566.9,4566.2,2.18999976]
[1755266855447,0.5127,4566.9,4566.2,2.18995935]
[1755266855848,0.5127,4566.9,4566.1,2.19001776]
[1755266856050,0.04,4566.9,4566.8,0.1096]
[1755266856250,1.0597,4566.9,4565.8,0.0008]
[1755266856459,0.1096,4566.5,4565.9,0.1096]
[1755266856663,0.56,4566.5,4565.9,0.1096]
[1755266856898,0.56,4566.5,4565.8,0.0008]
[1755266857065,0.56,4566.5,4565.9,2.19013783]
[1755266857260,0.4997,4566.9,4565.8,0.0008]
[1755266857558,0.1096,4566.8,4566.2,0.1096]
[1755266857746,2.29933054,4566.8,4566.2,0.1096]
[1755266857949,0.4504,4566.7,4565.9,2.19014691]
[1755266858183,0.1096,4566.4,4565.8,0.0008]
[1755266858359,0.1096,4566.4,4565.9,2.19014196]
[1755266858565,0.1096,4566.4,4565.9,2.19011145]
[1755266858878,0.4504,4566.3,4565.8,2.19098765]
[1755266859190,0.4504,4566.3,4565.8,0.0008]
[1755266860085,0.1096,4566.4,4565.8,0.0008]
[1755266860302,0.1096,4566.4,4565.8,3.25276461]
[1755266860501,0.1096,4566.8,4566.3,2.18995685]
[1755266860684,0.0392,4566.9,4566.8,0.1096]
[1755266860868,0.0392,4566.9,4566.8,5.52925582]
[1755266861206,0.0392,4566.9,4566.6,0.1096]
[1755266861358,0.0392,4566.9,4566.8,2.18971708]
[1755266861560,0.0392,4566.9,4566.8,5.64771708]
[1755266861794,0.0392,4566.9,4566.8,2.18971708]
[1755266862062,0.0392,4566.9,4566.8,2.29931708]
[1755266862272,0.0392,4566.9,4566.8,3.20622762]
[1755266862486,0.0392,4566.9,4566.8,6.64422479]
[1755266862698,0.0392,4566.9,4566.8,5.74822762]
[1755266862995,0.0392,4566.9,4566.8,6.20622762]
[1755266863212,0.0392,4566.9,4566.8,5.29931708]
[1755266863904,0.0392,4566.9,4566.8,3.1096]
[1755266864063,0.4896,4566.9,4566.8,3.0]
[1755266864432,0.0392,4566.9,4566.6,0.1096]
[1755266864597,0.4504,4566.8,4566.6,0.1096]
[1755266864784,0.56,4566.7,4566.0,0.1096]
[1755266864963,0.0392,4566.9,4566.2,2.19000481]
[1755266865297,0.0392,4566.9,4566.8,2.18971708]
[1755266865499,0.0392,4566.9,4566.8,0.1096]
[1755266865706,0.0392,4566.9,4566.8,2.75731708]
[1755266865992,0.0392,4566.9,4566.8,5.29931708]
[1755266866197,0.0392,4566.9,4566.8,3.1096]
[1755266866795,0.4896,4566.9,4566.6,0.1096]
[1755266867599,0.4896,4566.9,4566.6,2.29941061]
[1755266867763,0.0392,4566.9,4566.7,2.18976503]
[1755266867963,0.0392,4566.9,4566.6,0.1096]
[1755266868943,0.0392,4566.9,4566.8,3.0]
[1755266869238,0.0392,4566.9,4566.8,6.74915358]
[1755266869736,0.0392,4566.9,4566.8,6.33305358]
[1755266870427,0.0392,4566.9,4566.8,0.1096]
[1755266870734,0.4896,4566.9,4566.5,2.18985365]
[1755266870893,0.4896,4566.9,4566.6,0.1096]
[1755266871096,0.0392,4566.9,4566.6,0.1096]
[1755266871311,0.0392,4566.9,4566.8,2.18971708]
[1755266871710,0.0392,4566.9,4566.6,0.1096]
[1755266871909,0.0392,4566.9,4566.6,3.1096]
[1755266872127,0.0392,4566.9,4566.7,2.18972334]
[1755266872354,0.0392,4566.9,4566.6,2.30018502]
[1755266872562,0.0392,4566.9,4566.6,0.1104]
[1755266872715,0.4896,4566.9,4566.6,2.19060987]
[1755266872915,0.1096,4566.8,4566.6,0.0008]
[1755266873360,0.56,4566.8,4566.6,0.0008]
[1755266873537,0.4504,4566.7,4566.6,0.0008]
[1755266873735,3.54078503,4566.7,4566.6,0.0008]
[1755266874248,3.10066503,4566.7,4566.6,0.0008]
[1755266874448,6.90266503,4566.7,4566.6,0.0008]
[1755266874613,0.4504,4566.7,4566.6,0.0008]
[1755266874813,0.1096,4566.8,4566.6,0.0008]
[1755266875451,0.4504,4566.7,4566.6,0.0008]
[1755266875768,0.9109,4566.7,4566.6,0.0008]
[1755266876053,0.4504,4566.7,4566.6,0.0008]
[1755266876918,0.1096,4566.7,4566.6,0.0008]
[1755266877359,0.56,4566.7,4566.6,0.0008]
[1755266877561,3.21026503,4566.7,4566.6,0.0008]
[1755266878457,4.13427915,4566.7,4566.6,0.0008]
[1755266878824,4.68427915,4566.7,4566.6,0.0008]
[1755266879682,9.12427915,4566.7,4566.6,0.0008]
[1755266879978,12.81467915,4566.7,4566.6,0.0008]
[1755266880185,17.27458701,4566.7,4566.6,1e-08]
[1755266880478,15.83458701,4566.7,4566.6,1e-08]
[1755266881244,15.37467915,4566.7,4566.6,1e-08]
[1755266881646,15.83418766,4566.7,4566.6,1e-08]
[1755266881940,0.55,4565.5,4565.4,1e-08]
[1755266882168,6.86836985,4565.5,4565.4,1e-08]
[1755266882481,7.77926985,4565.5,4565.4,1e-08]
[1755266882668,2.74048453,4565.2,4565.1,1e-08]
[1755266883053,3.65138453,4565.2,4565.1,1e-08]
[1755266883272,4.6483672,4565.2,4565.1,1e-08]
[1755266883456,8.4473672,4565.2,4565.1,1e-08]
[1755266883780,2.74096446,4564.2,4563.1,0.04]
[1755266883982,6.53916446,4564.2,4563.1,0.04]
[1755266884282,3.19056446,4564.2,4563.1,0.04]
[1755266884447,7.86257016,4564.2,4563.1,0.04]
[1755266884946,4.06357016,4564.2,4563.1,0.04]
[1755266885282,8.32307016,4564.2,4563.1,0.04]
[1755266885471,2.74130053,4563.5,4563.1,0.04]
[1755266885673,6.54030053,4563.5,4563.1,0.04]
[1755266885846,7.45120053,4563.5,4563.1,0.04]
[1755266887350,0.55,4563.3,4563.1,0.04]
[1755266887587,2.7414446,4563.2,4563.1,0.04]
[1755266887798,3.70851872,4563.2,4563.1,0.04]
[1755266887987,4.64741872,4563.2,4563.1,0.04]
[1755266888207,4.17121872,4563.2,4563.1,0.04]
[1755266888681,7.96921872,4563.2,4563.1,0.04]
[1755266889084,8.44541872,4563.2,4563.1,0.04]
[1755266889252,8.44541872,4563.2,4562.9,0.001]
[1755266889253,2.74154065,4563.0,4562.9,1e-08]
[1755266889453,4.02437624,4563.0,4562.9,1e-08]
[1755266889982,8.07287624,4563.0,4562.9,1e-08]
[1755266890192,2.74192494,4562.2,4562.1,0.04]
[1755266890346,2.19197299,4562.1,4561.2,0.001]
[1755266890546,2.74245357,4561.1,4560.6,0.001]
[1755266890796,6.54045357,4561.1,4560.6,0.001]
[1755266890984,3.68135357,4561.1,4560.6,0.001]
[1755266891144,7.47935357,4561.1,4560.6,0.001]
[1755266891546,7.00215357,4561.1,4560.6,0.001]
[1755266892480,8.45866467,4561.1,4560.6,0.001]
[1755266892792,6.64905357,4561.1,4560.6,0.001]
[1755266892960,3.9076,4561.1,4560.6,0.001]
[1755266893160,6.10005357,4561.1,4560.6,0.001]
[1755266893488,7.11275357,4561.1,4560.6,0.001]
[1755266893650,7.58895357,4561.1,4560.6,0.001]
[1755266893851,6.64905357,4561.1,4560.6,0.001]
[1755266894055,8.05929595,4561.1,4560.6,0.001]
[1755266894595,4.4566,4561.1,4560.6,0.001]
[1755266894797,6.64905357,4561.1,4560.6,0.001]
[1755266895102,3.9066,4561.1,4560.6,0.001]
[1755266895411,3.9066,4561.1,4561.0,0.4518]
[1755266895560,0.1096,4561.1,4561.0,3.06036039]
[1755266895761,3.9066,4561.1,4561.0,0.4518]
[1755266895967,3.9066,4561.1,4561.0,3.06040164]
[1755266896177,0.1096,4561.1,4561.0,3.58580014]
[1755266896377,2.19167486,4562.8,4562.0,2.19199151]
[1755266896593,2.19167486,4562.8,4562.1,0.4508]
[1755266896594,3.797,4562.7,4562.1,0.4508]
[1755266896789,3.797,4562.7,4561.0,0.6359985]
[1755266896790,3.797,4562.7,4561.3,0.4161]
[1755266896960,2.57544488,4562.6,4561.8,2.19210909]
[1755266897163,0.3837,4562.6,4561.9,0.4508]
[1755266897394,3.796,4562.5,4561.9,0.4508]
[1755266897603,0.41797,4562.4,4562.1,2.19194931]
[1755266897784,0.04,4563.9,4562.6,2.1916977]
[1755266897785,2.19135828,4563.4,4562.6,2.1916977]
[1755266897971,3.9056,4562.8,4562.7,2.19164616]
[1755266898173,3.9056,4562.8,4562.7,3.05854616]
[1755266898701,0.1096,4562.8,4562.7,3.05854616]
[1755266898997,3.9056,4562.8,4562.7,3.05854616]
[1755266899201,0.1096,4562.8,4562.7,3.05854616]
[1755266899883,0.04,4562.9,4562.8,2.19163671]
[1755266900080,0.04,4562.9,4562.8,6.08045307]
[1755266900414,0.04,4562.9,4562.8,6.05853671]
[1755266900717,0.04,4562.9,4562.8,7.22329071]
[1755266900915,0.04,4562.9,4562.8,6.16813671]
[1755266901428,0.04,4562.9,4562.8,0.4508]
[1755266901717,0.04,4562.9,4562.8,5.64243671]
[1755266901882,0.04,4562.9,4562.8,5.64323671]
[1755266902088,0.04,4562.9,4562.8,3.0008]
[1755266902508,0.04,4562.9,4562.8,5.21435307]
[1755266902709,0.04,4562.9,4562.8,5.64323671]
[1755266902897,0.04,4562.9,4562.8,0.0008]
[1755266903620,2.23158868,4562.9,4562.8,0.0008]
[1755266903985,2.69428868,4562.9,4562.8,0.0008]
[1755266904381,1.38163836,4562.9,4562.8,0.0008]
[1755266904584,3.833,4562.9,4562.8,0.0008]
[1755266906049,7.51348868,4562.9,4562.8,0.0008]
[1755266907211,7.14488868,4562.9,4562.8,0.0008]
[1755266907811,7.62108868,4562.9,4562.8,0.0008]
[1755266908313,8.07821026,4562.9,4562.8,0.0008]
[1755266908626,8.07821026,4562.9,4561.0,0.001]
[1755266908627,2.19245357,4561.1,4561.0,0.001]
[1755266908830,6.09305357,4561.1,4561.0,0.001]
[1755266909139,7.10575357,4561.1,4561.0,0.001]
[1755266909321,6.64305357,4561.1,4561.0,0.001]
[1755266909954,0.1096,4561.1,4561.0,0.001]
[1755266910155,6.09305357,4561.1,4561.0,0.001]
[1755266910368,2.30205357,4561.1,4561.0,0.001]
[1755266910561,6.09205357,4561.1,4561.0,0.001]
[1755266910758,7.93319593,4561.1,4561.0,0.001]
[1755266911172,0.1096,4561.1,4561.0,0.001]
[1755266911451,3.8996,4561.1,4561.0,0.001]
[1755266911649,6.09205357,4561.1,4561.0,0.001]
[1755266912348,3.8996,4561.1,4561.0,0.001]
[1755266912542,6.09205357,4561.1,4561.0,0.001]
[1755266912757,8.40939593,4561.1,4561.0,0.001]
[1755266912962,8.86704266,4561.1,4561.0,0.001]
[1755266913782,7.92714266,4561.1,4561.0,0.001]
[1755266914098,7.92714266,4561.1,4560.7,0.001]
[1755266914099,2.74259778,4560.8,4560.7,0.001]
[1755266914252,8.205116,4560.8,4560.7,1e-08]
[1755266914449,8.205116,4560.8,4560.3,0.001]
[1755266914450,2.74269394,4560.6,4560.5,1e-08]
[1755266914787,3.20034067,4560.6,4560.5,1e-08]
[1755266914957,2.74312674,4559.7,4559.6,1e-08]
[1755266915161,12.36237347,4559.7,4559.6,1e-08]
[1755266915374,21.26228131,4559.7,4559.6,1e-08]
[1755266915555,21.65148744,4559.7,4559.6,1e-08]
[1755266915760,2.74346347,4559.0,4558.9,1e-08]
[1755266915981,4.1614015,4559.0,4558.9,1e-08]
[1755266916167,8.76417408,4559.0,4558.9,1e-08]
[1755266916499,8.0023102,4559.0,4558.9,1e-08]
[1755266917044,8.96236051,4559.0,4558.9,1e-08]
[1755266917255,9.23216486,4559.0,4558.9,1e-08]
[1755266917445,10.19202939,4559.0,4558.9,1e-08]
[1755266917671,12.43016551,4559.0,4558.9,1e-08]
[1755266917857,17.57296134,4559.0,4558.9,1e-08]
[1755266918058,13.78496134,4559.0,4558.9,1e-08]
[1755266918260,16.43016551,4559.0,4558.9,1e-08]
[1755266918659,17.57296134,4559.0,4558.9,1e-08]
[1755266918881,17.57296134,4559.0,4557.5,0.001]
[1755266918882,2.74413726,4557.6,4557.5,0.001]
[1755266919091,6.98978399,4557.6,4557.5,0.001]
[1755266919390,12.81648399,4557.6,4557.5,0.001]
[1755266919881,12.36538399,4557.6,4557.5,0.001]
[1755266920281,8.57738399,4557.6,4557.5,0.001]
[1755266920468,12.36538399,4557.6,4557.5,0.001]
[1755266920890,6.38324673,4557.6,4557.5,0.001]
[1755266921073,9.1626,4557.6,4557.5,0.4963]
[1755266921385,5.3756,4557.6,4557.5,3.1073854]
[1755266921685,11.35673726,4557.6,4557.5,0.001]
[1755266921863,13.26495732,4557.6,4557.5,0.001]
[1755266922061,8.57435732,4557.6,4557.5,0.001]
[1755266922376,4.35122006,4557.6,4557.5,0.001]
[1755266922686,0.45428525,4558.2,4557.5,0.9132]
[1755266922870,0.45433625,4559.8,4557.9,5.19399284]
[1755266923070,3.787,4559.7,4558.4,0.1096]
[1755266923269,0.1096,4559.3,4559.2,2.19336725]
[1755266923484,3.8956,4559.3,4558.6,3.0]
[1755266923660,3.786,4559.3,4558.5,0.9122]
[1755266923860,0.1096,4558.7,4558.6,5.19365594]
[1755266924062,2.19293515,4560.1,4558.6,3.9122]
[1755266924263,0.1096,4559.1,4558.7,3.0]
[1755266924592,2.1929895,4560.0,4559.2,2.19335695]
[1755266924819,3.786,4559.9,4559.0,3.0]
[1755266925026,0.1096,4559.1,4559.0,2.58468347]
[1755266925327,0.1096,4559.1,4559.0,3.49688347]
[1755266925487,3.8946,4559.1,4559.0,6.49688347]
[1755266926017,0.1096,4559.1,4559.0,6.10566347]
[1755266926181,0.1088,4559.1,4559.0,6.10566347]
[1755266926386,3.785,4559.5,4559.4,2.19327104]
[1755266926594,0.1096,4559.6,4559.5,2.19322294]
[1755266926817,3.785,4559.7,4559.6,5.19317483]
[1755266927024,3.8936,4559.9,4559.8,2.19307864]
[1755266927316,0.1096,4559.9,4559.8,3.10527864]
[1755266927490,0.1096,4559.9,4559.8,2.68837864]
[1755266927893,3.784,4560.0,4559.8,2.68837864]
[1755266928093,0.1096,4559.9,4559.8,2.68837864]
[1755266928529,0.0424,4559.9,4559.8,2.68837864]
[1755266928730,0.0424,4559.9,4559.8,3.17653399]
[1755266929431,0.0424,4559.9,4559.8,6.59343399]
[1755266929655,3.783,4560.4,4560.3,2.19283819]
[1755266929932,3.783,4560.4,4559.9,5.19298677]
[1755266930133,3.783,4560.4,4560.1,2.19293436]
[1755266930631,3.783,4560.4,4560.3,2.19283819]
[1755266930823,3.783,4560.4,4560.1,3.0]
[1755266931026,3.783,4560.4,4560.1,2.19291936]
[1755266931237,3.783,4560.4,4560.2,0.4953]
[1755266931439,0.002,4561.6,4560.3,0.9122]
[1755266931756,3.782,4561.5,4560.9,2.19254884]
[1755266931904,3.782,4561.5,4560.3,1.52271031]
[1755266932108,3.782,4561.5,4560.7,2.19262495]
[1755266932519,3.782,4561.5,4560.3,0.9122]
[1755266932715,3.782,4561.5,4560.4,3.0]
[1755266932907,0.002,4561.1,4560.2,2.19284786]
[1755266933103,2.19254971,4560.9,4560.1,2.19292422]
[1755266933335,2.19261067,4560.8,4559.9,2.19299265]
[1755266933516,2.19261067,4560.8,4559.2,0.9122]
[1755266933717,2.192672,4560.7,4559.8,2.19303278]
[1755266933921,2.19270832,4560.6,4559.3,3.0]
[1755266934122,3.78,4560.5,4559.9,2.19302202]
[1755266934649,3.78,4560.5,4559.8,2.1930682]
[1755266935149,5.9727522,4560.5,4559.7,2.1931185]
[1755266935314,3.78,4560.5,4559.8,2.19307053]
[1755266935516,0.55,4560.4,4558.8,0.4963]
[1755266935711,0.55,4560.2,4558.9,3.0]
[1755266935948,2.74292776,4560.2,4559.4,2.19322698]
[1755266936147,0.31940278,4560.1,4558.9,3.0]
[1755266936335,3.779,4560.0,4558.8,0.4963]
[1755266936538,2.19314299,4559.7,4558.9,2.19351159]
[1755266936735,3.779,4560.0,4558.9,2.19351159]
[1755266936936,0.8305,4560.5,4558.8,0.001]
[1755266936937,3.779,4559.9,4559.0,0.02193463]
[1755266937140,3.779,4559.8,4559.3,2.19327673]
[1755266937447,3.779,4559.8,4559.4,2.19323941]
[1755266937649,3.779,4559.8,4558.9,3.0]
[1755266937650,3.779,4559.8,4559.5,2.19320919]
[1755266937867,3.779,4559.8,4559.3,2.19327796]
[1755266938169,3.779,4559.8,4559.4,2.19326455]
[1755266938317,3.779,4559.8,4559.3,2.19331043]
[1755266938640,3.779,4559.8,4559.2,2.19335644]
[1755266938836,3.779,4559.8,4559.3,2.19331132]
[1755266939673,3.779,4559.8,4559.2,2.19336004]
[1755266939853,3.779,4559.8,4559.1,2.19340695]
[1755266940156,0.1096,4559.4,4559.2,2.19336524]
[1755266940323,0.4511,4560.0,4558.8,0.001]
[1755266940656,0.1096,4559.1,4559.0,5.19346347]
[1755266940956,0.1096,4559.1,4559.0,5.93225879]
[1755266941156,0.1096,4559.4,4559.3,2.1933078]
[1755266941450,3.8856,4559.4,4558.8,0.001]
[1755266941615,3.8856,4559.4,4559.3,2.19331914]
[1755266942017,3.8856,4559.4,4559.0,2.19345183]
[1755266942256,0.4511,4561.2,4559.2,2.19336725]
[1755266942457,2.19422904,4561.6,4559.2,3.0]
[1755266942458,0.4531,4561.6,4559.2,3.0]
[1755266942618,0.002,4561.6,4559.8,3.0]
[1755266942826,0.002,4561.6,4559.7,2.19312674]
[1755266942827,3.775,4561.4,4559.7,3.0]
[1755266943020,0.4511,4561.0,4559.8,0.3]
[1755266943226,0.002,4561.6,4560.8,2.19259778]
[1755266943450,0.002,4561.6,4561.0,2.19250164]
[1755266943644,3.775,4561.5,4561.0,2.19250164]
[1755266944037,0.002,4561.6,4561.0,5.68780164]
[1755266944272,0.002,4561.6,4561.0,6.10470164]
[1755266944451,0.002,4561.6,4561.0,6.93443158]
[1755266944848,3.774,4561.2,4559.7,0.9122]
[1755266945042,0.002,4561.6,4559.7,0.9122]
[1755266945242,0.002,4561.6,4561.0,2.19250164]
[1755266945489,3.774,4561.4,4561.0,2.21442665]
[1755266945643,5.96630978,4561.4,4560.5,2.19269801]
[1755266945842,5.96630978,4561.4,4559.8,3.10523706]
[1755266945843,0.4531,4561.1,4560.6,2.19268825]
[1755266946144,0.002,4561.1,4560.0,2.19298245]
[1755266946358,0.002,4561.1,4560.7,3.0]
[1755266946562,0.002,4561.1,4560.8,0.02192597]
[1755266946870,0.002,4561.1,4561.0,2.19250164]
[1755266947055,0.002,4561.1,4560.9,2.19254658]
[1755266947242,0.002,4561.1,4560.5,2.19274047]
[1755266947442,0.002,4561.1,4560.7,2.19259875]
[1755266947644,0.002,4561.1,4560.6,2.19266831]
[1755266948047,0.4613,4561.1,4560.6,2.19266831]
[1755266948376,0.4593,4561.0,4560.6,2.19266831]
[1755266948576,0.002,4561.1,4560.7,2.19263109]
[1755266948747,0.002,4561.1,4560.6,2.19269194]
[1755266948949,0.002,4561.1,4560.6,2.19267869]
[1755266949145,0.4593,4561.0,4560.5,2.19269976]
[1755266949345,0.4593,4561.0,4560.7,2.19264381]
[1755266949681,0.4593,4561.0,4560.6,2.19269005]
[1755266949841,0.4593,4561.0,4560.7,2.19262799]
[1755266950043,0.4593,4561.0,4560.6,2.1926864]
[1755266950283,0.4593,4560.9,4560.3,2.19279931]
[1755266950480,0.4593,4560.9,4559.6,2.19316066]
[1755266950481,0.002,4561.1,4561.0,2.19250164]
[1755266950781,0.002,4561.1,4561.0,5.66770164]
[1755266951078,0.002,4561.1,4561.0,5.19250164]
[1755266952074,0.002,4561.1,4561.0,5.19330164]
[1755266952279,0.002,4561.1,4561.0,5.30290164]
[1755266952777,0.002,4561.1,4561.0,6.94454897]
[1755266952982,0.002,4561.6,4561.5,2.19226131]
[1755266953179,0.002,4562.1,4561.5,2.19226131]
[1755266953180,0.002,4562.1,4562.0,2.19202104]